Cogmind - Beta 15 @@@ ROGUE MODE // 2025.06.21 @ 17:44:36 Player: Jammed Result: Destroyed by X-67 Chaingunner with Minigun Performance ------------- Evolutions (3) 1500 Regions Visited (5) 1000 Robots Destroyed (175) 875 Value Destroyed (4556) 4556 Prototype IDs (9) 180 Alien Tech Used (0) 0 Bonus (189) 189 TOTAL SCORE: 8300 Bonus ------- High Alert Combat Kills 189 Cogmind --------- Core Integrity 0/700 Matter 27/300 Energy 100/100 System Corruption 2% Temperature Cool (0) Movement Core (350) Ox6 Location -7/Factory Parts ------- > --- POWER (1) -------- (None) > --- PROPULSION (4) --- (None) > --- UTILITY (5) ------ Large Storage Unit Advanced Visual Processing Unit Launcher Guidance Computer Hacking Suite Hacking Suite > --- WEAPON (3) ------- (None) > --- INVENTORY (15) --- Improved Sensor Array Improved Signal Interpreter Layered Light Armor Plating Layered Light Armor Plating Hardlight Generator Hacking Suite Hacking Suite System Shield Sensor Drone Bay (19/20) Mini Assault Cannon Mini Grenade Launcher Mini Grenade Launcher Heavy Missile Launcher Peak State ------------ > --- POWER ------------ Enhanced Nuclear Core > --- PROPULSION ------- Airjet Airjet Airjet Airjet > --- UTILITY ---------- Large Storage Unit Advanced Visual Processing Unit Launcher Guidance Computer Hacking Suite Hacking Suite > --- WEAPON ----------- Mini Grenade Launcher Heavy Rocket Launcher Spear > --- INVENTORY -------- Airjet Airjet Improved Sensor Array Improved Signal Interpreter Layered Light Armor Plating Layered Light Armor Plating Hardlight Generator Hacking Suite Hacking Suite System Shield Sensor Drone Bay Mini Assault Cannon Mini Grenade Launcher Heavy Missile Launcher Heavy Missile Launcher [Rating: 46] Favorites ----------- Power Cooled Ion Engine Engine Cooled Ion Engine Power Core Enhanced Nuclear Core Propulsion Light Treads Treads Light Treads Leg Aluminum Leg Wheel Compact Wheel Hover Unit Airjet Utility Large Storage Unit Device Improved Heat Sink Storage Large Storage Unit Processor Advanced Visual Processing Unit Hackware Hacking Suite Protection Light Armor Plating Weapon Improved EM Shotgun Energy Gun Improved EM Shotgun Energy Cannon Ion Cannon Ballistic Gun Light Assault Rifle Ballistic Cannon Improved Light Cannon Launcher Mini Grenade Launcher Special Weapon Mining Laser Impact Weapon Maul Piercing Weapon Spear Build | -11 -10 -10 -9 -8 -7 ------- Run | Yrd Mat Min Mat Mat Fac Slots Evolved 6 | . . . 2 2 2 Power . | . . . . . . Propulsion 2 | . . . . 1 1 Utility 3 | . . . 1 1 1 Weapon 1 | . . . 1 . . Parts Attached 95 | 2 16 3 30 23 21 Power 5 | . 1 . 3 . 1 Engine 4 | . 1 . 3 . . Core 1 | . . . . . 1 Reactor . | . . . . . . Propulsion 34 | . 5 . 10 9 10 Treads 18 | . 3 . 9 6 . Leg 1 | . . . . 1 . Wheel 3 | . 2 . . 1 . Hover 12 | . . . 1 1 10 Flight . | . . . . . . Utility 21 | 1 4 2 4 7 3 Device 5 | 1 2 1 . 1 . Storage 4 | . 1 . . 2 1 Processor 2 | . . . . 1 1 Hackware 2 | . . . . 1 1 Protection 8 | . 1 1 4 2 . Artifact . | . . . . . . Weapon 35 | 1 6 1 13 7 7 Energy Gun 9 | . 2 . 7 . . Energy Cannon 11 | . 2 . 4 4 1 Ballistic Gun 3 | 1 1 . . 1 . Ballistic Cannon 3 | . . . 1 1 1 Launcher 6 | . . . 1 1 4 Special Weapon 1 | . 1 . . . . Impact Weapon 1 | . . 1 . . . Slashing Weapon . | . . . . . . Piercing Weapon 1 | . . . . . 1 Special Melee Weapon . | . . . . . . Unidentified Prototypes 9 | . . 1 5 1 2 Corrupted Parts 3 | . . . 1 2 . System Corruption 16 | . . . 2 14 . Parts Lost 25 | . 1 1 3 10 10 Power 1 | . . . . . 1 Propulsion 12 | . . . 1 4 7 Utility 5 | . . 1 1 3 . Weapon 7 | . 1 . 1 3 2 Highest Loss Streak 4 | . 1 1 2 3 4 To Critical Strikes . | . . . . . . Average Backups 15 | 6 11 14 14 19 14 Power . | 1 . . . . . Propulsion 4 | 4 3 3 3 7 2 Utility 4 | . 1 2 2 8 8 Weapon 5 | 1 5 8 8 4 3 Tool/Special . | . . . . . . Unused Backups 43 | . 15 2 7 5 14 Power 3 | . 3 . . . . Propulsion 13 | . 4 1 1 5 2 Utility 11 | . 1 . . . 10 Weapon 15 | . 7 1 5 . 2 Tool/Special 1 | . . . 1 . . Average Slot Usage (%) 92 | . 99 100 93 84 87 Engine 10 | . 14 14 10 9 2 Treads 17 | . 14 28 19 24 2 Leg 1 | . 5 . . 1 . Wheel 1 | . 8 . . . . Hover 3 | . . . . . 24 Device 7 | . 9 13 11 3 4 Storage 11 | . 14 14 11 12 7 Processor 1 | . . . . 1 10 Hackware 2 | . . . . . 14 Protection 6 | . 4 . 10 8 . Energy Gun 9 | . 8 10 17 4 . Energy Cannon 7 | . 5 14 . 16 3 Ballistic Gun 1 | . 8 . . . . Ballistic Cannon 2 | . . . 4 3 1 Special Weapon 1 | . 4 . . . . Impact Weapon 2 | . . 3 8 . . Peak Build Rating 46 | 7 12 18 26 29 46 Average Rating 20 | 6 9 16 19 23 37 On Entrance 14 | 6 7 11 18 18 24 Naked Turns . | . . . . . . Heaviest Build 86 | 11 34 47 54 86 56 Greatest Support 60 | 20 40 40 40 60 40 Greatest Overweight (x) 13 | . 2 1 12 8 13 Average Overweight (x) . | . . . . . . Largest Inventory Capacity 20 | 8 15 15 15 20 20 Average Capacity 15 | 8 12 15 15 19 15 Most Carried 20 | 7 15 15 15 20 18 Average Carried 15 | 6 11 14 14 19 14 Final Capacity 20 | 8 15 15 15 20 15 Final Carried 18 | 7 15 15 15 18 13 Class Distribution -------------------- 52% | Mutant 19% | Scavenger-Mutant 10% | Tank 9% | Hacker-Mutant 6% | Scavenger-Tank Dominant Class ---------------- Mutant | -10/Materials Mutant | -10/Mines Mutant | -9/Materials Tank | -8/Materials Hacker-Mutant | -7/Factory Resources | -11 -10 -10 -9 -8 -7 ----------- Run | Yrd Mat Min Mat Mat Fac Matter Collected 2563 | 282 332 52 840 576 481 Remotely . | . . . . . . Salvage Created 5650 | 162 692 136 1482 2597 581 Parts 331 | 16 45 9 110 114 37 Haulers Intercepted 13 | . 2 . 5 5 1 Recyclers Shooed 6 | . 2 . 1 3 . Parts Field Recycled . | . . . . . . Retrieved Matter . | . . . . . . Parts Self-Destructed . | . . . . . . Prevented . | . . . . . . Kills | -11 -10 -10 -9 -8 -7 ------- Run | Yrd Mat Min Mat Mat Fac Combat Hostiles Destroyed 105 | . 13 6 36 39 11 Melee 2 | . . 1 . . 1 Guns 41 | . 10 4 22 5 . Cannons 35 | . 3 1 8 19 4 AOE 20 | . . . 6 8 6 Classes Destroyed 16 | 2 7 1 2 3 1 Worker 13 | . . . 1 4 8 Builder 2 | . 1 . . 1 . Tunneler 7 | 5 . . . . 2 Hauler 13 | . 2 . 5 5 1 Recycler 8 | 1 1 1 . 4 1 Mechanic 3 | . 1 . . 1 1 Operator 9 | . 2 . 3 2 2 Watcher 16 | . 2 . 5 5 4 Swarmer 31 | . 3 5 15 4 4 Grunt 47 | . 10 . 11 24 2 Brawler 1 | . . . . 1 . Duelist 2 | . . . . 2 . Sentry 18 | . . . 10 7 1 Hunter 2 | . . . . 1 1 Programmer 3 | . . . . . 3 Assembled 1 | . . 1 . . . Best Kill Streak 8 | 2 3 3 7 8 5 Combat Bots Only 5 | . 3 3 4 5 4 Max Kills in Single Turn 3 | 1 2 1 3 2 3 Gunslinging 1 | . 1 . 1 . . Exploded 3 | . . . 3 2 3 Melee 1 | . . 1 . . 1 Uniques/NPCs Destroyed . | . . . . . . Combat | -11 -10 -10 -9 -8 -7 -------- Run | Yrd Mat Min Mat Mat Fac Hostile Shots Fired 580 | . 65 22 134 167 192 Missed 201 | . 15 5 41 57 83 Hits 379 | . 50 17 93 110 109 Melee 8 | . . 2 . 6 . Projectile 371 | . 50 15 93 104 109 Critical Strikes 17 | . 1 . 3 9 4 Damage Taken 5787 | . 599 159 1327 2064 1638 Core 1323 | . 110 49 114 348 702 Absorbed by Shields . | . . . . . . Regen/Repaired (Parts) 129 | . . . 129 . . Core Remaining (%) 60 | 100 . 36 71 36 . Volleys Fired 448 | 31 117 12 96 143 49 Largest 3 | 2 2 2 3 3 2 Hottest 195 | 40 125 125 195 157 120 Shots Fired 738 | 62 182 22 188 227 57 Gun 373 | 62 116 10 139 46 . Cannon 307 | . 40 12 46 173 36 Launcher 32 | . . . 3 8 21 Special 26 | . 26 . . . . Kinetic 210 | 62 67 . 46 12 23 Thermal 265 | . 115 22 69 46 13 Explosive 32 | . . . 3 8 21 Electromagnetic 231 | . . . 70 161 . Robot Hit Streak 17 | 13 8 8 12 17 5 Robot Miss Streak 12 | 3 12 6 10 5 2 Penetration Max . | . . . . . . Secondary Targets 3 | . 1 . 2 . . Max Gunslinging Chain 1 | . 1 . 1 . . Shots Hit Robots 481 | 45 95 15 138 154 34 Core Hits 311 | 12 54 15 89 94 47 Critical Kills . | . . . . . . Critical Parts Destroyed 1 | . 1 . . . . Critical Strikes 7 | . 1 . 3 3 . Burn 2 | . . . 2 . . Destroy 1 | . 1 . . . . Blast 1 | . . . 1 . . Corrupt 3 | . . . . 3 . Melee Attacks 32 | . . 5 . . 27 Impact 5 | . . 5 . . . Slashing . | . . . . . . Piercing 27 | . . . . . 27 Sneak Attacks 1 | . . . . . 1 Combat Hostiles 1 | . . . . . 1 Follow-up Attacks . | . . . . . . Damage Inflicted 12401 | 342 1183 234 3006 4910 2726 Guns 3604 | 342 748 120 1675 719 . Cannons 4720 | . 435 71 659 2980 575 Explosions 3860 | . . . 672 1211 1977 Melee 217 | . . 43 . . 174 Ramming . | . . . . . . Kinetic 1932 | 342 389 . 659 149 393 Thermal 3468 | . 794 191 1097 949 437 Explosive 2890 | . . . 302 866 1722 Electromagnetic 3894 | . . . 948 2946 . Impact 43 | . . 43 . . . Slashing . | . . . . . . Piercing 174 | . . . . . 174 Highest Corruption 15 | . . . 4 15 2 Average Corruption 5 | . . . 2 8 1 Corruption Purged . | . . . . . . Corruption Blocked . | . . . . . . Effects 104 | . . . 10 87 7 Message Errors 30 | . . . 2 25 3 Matter Fused 32 | . . . 5 25 2 Heat Flow Errors 8 | . . . . 7 1 Energy Discharges 12 | . . . . 12 . Parts Rejected 2 | . . . . 2 . Parts Fused 2 | . . . . 2 . Data Loss (minor) 6 | . . . 1 4 1 Data Loss (major) 2 | . . . 1 1 . Misfires 2 | . . . . 2 . Alerts 2 | . . . 1 1 . Weapon Failures 6 | . . . . 6 . Overload Shots . | . . . . . . Overflow Damage 428 | . 4 . 91 139 194 Projectiles 46 | . 4 . . 34 8 Explosions 369 | . . . 91 105 173 Melee 13 | . . . . . 13 Knockbacks 10 | . . . 2 2 6 Impact . | . . . . . . Kinetic 10 | . . . 2 2 6 Secondary . | . . . . . . Self-Inflicted Damage 539 | . . . 219 242 78 Shots 11 | . . . 4 5 2 Rammed . | . . . . . . Targets Rammed . | . . . . . . Kicked . | . . . . . . Crushed . | . . . . . . Highest Temperature 408 | . 332 294 288 408 217 Average Temperature 81 | . 65 120 54 95 68 Received Heat Transfer 1542 | . 318 . 354 828 42 Effects 4 | . 1 . . 3 . Shutdowns 1 | . . . . 1 . Energy Bleed 1 | . . . . 1 . Interference 1 | . 1 . . . . Matter Decay 1 | . . . . 1 . Siege Activations . | . . . . . . Martial Activations . | . . . . . . Shielding Activations . | . . . . . . Robots Disrupted . | . . . . . . Combat Hostiles . | . . . . . . Robots Corrupted 8 | . . . . 8 . Combat Hostiles 7 | . . . . 7 . Parts Fried 26 | . . . 4 22 . Impact Corruptions . | . . . . . . Robots Melted . | . . . . . . Combat Hostiles . | . . . . . . Parts Melted 6 | . 1 . . 4 1 Heat Transferred 5596 | . 1575 313 2000 1262 446 Parts Sabotaged . | . . . . . . Parts Stolen . | . . . . . . Parts Stripped . | . . . . . . Power Chain Reactions 8 | . . . 5 3 . Alert | -11 -10 -10 -9 -8 -7 ------- Run | Yrd Mat Min Mat Mat Fac Maximum Alert Level 3 | . . . 2 3 2 Low Security (%) 57 | 100 100 100 57 14 39 Level 1 29 | . . . 20 62 54 Level 2 12 | . . . 21 21 6 Level 3 . | . . . . 1 . Level 4 . | . . . . . . Level 5 . | . . . . . . High Security . | . . . . . . Max Security . | . . . . . . Peak Influence 726 | 10 160 121 559 726 418 Initial 329 | . 3 61 . 232 329 Average 188 | 2 54 15 215 312 240 Influence Increases 4290 | 30 646 125 1287 1463 739 Destroy 0b10 Robot/C 2080 | . 260 100 720 780 220 Destroy 0b10 Robot/NC 350 | 30 45 5 70 110 90 Destroy Leader 598 | . 78 20 230 190 80 Successful Hack 142 | . 46 . 11 17 68 Select Force Hacks 150 | . 60 . 60 30 . Disable Machine 405 | . 60 . 105 120 120 Destroy Structure 310 | . 22 . 76 96 116 Partial Spotted 30 | . 15 . . . 15 Lose Combat Pursuer 225 | . 60 . 15 120 30 Influence Decreases 3923 | 25 493 283 737 1289 1096 Entered New Map 812 | . 2 97 . 318 395 Time Decay 2651 | 25 481 166 707 701 571 Lost Part 250 | . 10 10 30 100 100 Lost Ally 60 | . . 10 . 20 30 Purge Threat 150 | . . . . 150 . Squads Dispatched 26 | . 5 . 6 7 8 Investigation 11 | . 4 . 2 4 1 Extermination 3 | . . . . . 3 Reinforcement 8 | . 1 . 4 2 1 Assault 1 | . . . . 1 . Garrison 3 | . . . . . 3 Intercept . | . . . . . . Searches Triggered . | . . . . . . Construction Impeded 2 | . . . 1 . 1 Haulers Reinforced . | . . . . . . Active Scanning Responses . | . . . . . . Cargo Convoy Interrupts 1 | . . . . . 1 Stealth | -11 -10 -10 -9 -8 -7 --------- Run | Yrd Mat Min Mat Mat Fac Distress Signals 11 | . 2 . 2 6 1 Communications Jammed . | . . . . . . Distress Signals . | . . . . . . Times Spotted 190 | . 37 6 48 56 43 Peak Tracking Total 13 | . 3 3 4 5 13 Tactical Retreats 12 | . 2 1 1 6 2 Traps | -11 -10 -10 -9 -8 -7 ------- Run | Yrd Mat Min Mat Mat Fac Traps Triggered 7 | . . . 5 1 1 Indirectly . | . . . . . . Trap Hack Attempts . | . . . . . . Triggered . | . . . . . . Disarmed . | . . . . . . Reprogrammed . | . . . . . . Reused . | . . . . . . Traps Extracted . | . . . . . . Installed . | . . . . . . Triggered . | . . . . . . Machines | -11 -10 -10 -9 -8 -7 ---------- Run | Yrd Mat Min Mat Mat Fac Machines Disabled 28 | . 4 . 8 8 8 Max in Single Turn 3 | . 1 . 3 2 2 Garrison Access 1 | . . . . . 1 Machines Repaired . | . . . . . . Machines Dismantled . | . . . . . . Machines Sabotaged . | . . . . . . Overloaded Fab Kills . | . . . . . . Hacking | -11 -10 -10 -9 -8 -7 --------- Run | Yrd Mat Min Mat Mat Fac Machines Accessed 45 | . 10 1 11 7 16 Terminals 30 | . 7 . 7 5 11 Fabricators 1 | . . . . . 1 Repair Stations 5 | . 1 . 2 1 1 Recycling Units 6 | . 2 . 2 1 1 Scanalyzers 1 | . . . . . 1 Garrison Access 1 | . . . . . 1 Total Hacks 127 | . 37 1 25 22 42 Successful 74 | . 19 1 14 13 27 Failed 53 | . 18 . 11 9 15 Catastrophic 5 | . 3 . 1 . 1 Database Lockouts . | . . . . . . Manual 90 | . 31 . 20 14 25 Terminals 91 | . 29 . 16 18 28 Fabricators 2 | . . . . . 2 Repair Stations 14 | . 3 . 6 3 2 Recycling Units 13 | . 5 . 3 1 4 Scanalyzers 5 | . . . . . 5 Garrison Access 1 | . . . . . 1 Terminal Hacks 9 | . 2 1 . 3 3 Robot Analysis 1 | . 1 . . . . Open Door 1 | . . 1 . . . Branch Access Points 1 | . . . . . 1 Machine Index 1 | . . . . . 1 Terminal Index 2 | . 1 . . 1 . Alert Level 1 | . . . . 1 . Unreport Threat 1 | . . . . 1 . Registered Components 1 | . . . . . 1 Fabricator Hacks 1 | . . . . . 1 Network Status 1 | . . . . . 1 Repair Station Hacks 8 | . 1 . 5 1 1 Scan Component 6 | . 1 . 3 1 1 Repair 2 | . . . 2 . . Recycling Unit Hacks 1 | . 1 . . . . Report Inventory 1 | . 1 . . . . Scanalyzer 5 | . . . . . 5 Insert Component 2 | . . . . . 2 Analyze 3 | . . . . . 3 Garrison Access Hacks 1 | . . . . . 1 Seal Access 1 | . . . . . 1 Unauthorized Hacks 49 | . 15 . 9 9 16 Terminals 39 | . 12 . 7 8 12 Track 2 | . . . . . 2 Assimilate 8 | . 4 . . 2 2 Botnet 7 | . 2 . 1 2 2 Operators 4 | . 1 . 1 1 1 Skim 18 | . 5 . 5 3 5 Fabricators . | . . . . . . Repair Stations . | . . . . . . Recycling Units 10 | . 3 . 2 1 4 Monitor 1 | . . . . . 1 Reject 2 | . 1 . . . 1 Recyclers 1 | . . . . . 1 Mask 1 | . . . . . 1 Tunnel 5 | . 2 . 2 1 . Scanalyzers . | . . . . . . Garrison Access . | . . . . . . Data Cores Recovered 2 | . . . . 1 1 Used . | . . . . . . Hacking Detections 37 | . 8 . 10 5 14 Full Trace Events 4 | . 2 . . 2 . Feedback Events 1 | . . . . 1 . Corruption 1 | . . . . 1 . Feedback Blocked . | . . . . . . Robot Schematics Acquired . | . . . . . . Robots Built . | . . . . . . Authchips . | . . . . . . Time . | . . . . . . Total Robot Build Rating . | . . . . . . Part Schematics Acquired 1 | . . . . . 1 Parts Built . | . . . . . . Authchips . | . . . . . . Time . | . . . . . . Total Part Build Rating . | . . . . . . Parts Repaired 2 | . . . 2 . . Time 77 | . . . 77 . . Parts Recycled . | . . . . . . Recycled Matter . | . . . . . . Retrieved Matter . | . . . . . . Retrieved Components . | . . . . . . Parts Scanalyzed 2 | . . . . . 2 Part Schematics Acquired 1 | . . . . . 1 Parts Damaged . | . . . . . . Bothacking | -11 -10 -10 -9 -8 -7 ------------ Run | Yrd Mat Min Mat Mat Fac Used RIF Installer . | . . . . . . Robots Hacked . | . . . . . . Non-combat . | . . . . . . Combat . | . . . . . . Robot Hacks Applied . | . . . . . . Relay Couplers Released . | . . . . . . Fabnet Peak Effective % . | . . . . . . Robots Rewired 1 | . . . . . 1 Allies Hacked . | . . . . . . Hacks Repelled . | . . . . . . Allies | -11 -10 -10 -9 -8 -7 -------- Run | Yrd Mat Min Mat Mat Fac Total Allies 6 | . 1 . . 2 3 Largest Group 2 | . 1 1 . 2 1 Highest-Rated Group 26 | . 10 10 . 20 26 Highest-Rated Ally 26 | . 10 10 . 10 26 Total Orders 25 | . 2 8 9 6 . STAY 4 | . 1 . . 3 . ROAM 2 | . . 1 1 . . FOLLOW 5 | . 1 1 1 2 . EXPLORE 2 | . . 1 1 . . RETURN 12 | . . 5 6 1 . Ally Attacks 4 | . . . . . 4 Total Damage 47 | . . . . . 47 Kills . | . . . . . . Allies Corrupted . | . . . . . . Allies Melted . | . . . . . . Intel | -11 -10 -10 -9 -8 -7 ------- Run | Yrd Mat Min Mat Mat Fac Active Infowar (turns) 3914 | 115 1604 101 . 368 1726 Optics 2094 | . . . . 368 1726 Seismic 1820 | 115 1604 101 . . . Robot Analysis Total 1 | . 1 . . . . Derelict Logs Recovered 1 | . . 1 . . . Drone Launches 13 | . . 5 6 2 . Drone Recoveries 12 | . . 4 6 2 . Exploration | -11 -10 -10 -9 -8 -7 ------------- Run | Yrd Mat Min Mat Mat Fac Turns Passed 12270 | 156 2502 1146 3733 3007 1726 Spaces Moved 5691 | 59 1126 406 1342 946 1812 Core 11 | . . . 1 . 10 Treads 3052 | . 282 406 1341 934 89 Legs 311 | 59 252 . . . . Wheels 604 | . 592 . . 12 . Hover 1713 | . . . . . 1713 Flight . | . . . . . . Fastest Speed 48 | 120 100 160 160 160 48 Average Speed 155 | 120 124 225 221 232 72 Slowest Speed 700 | 120 160 240 650 240 700 Overloaded Moves . | . . . . . . Propulsion Burnouts . | . . . . . . Robots Hopped . | . . . . . . Potential Cave-ins . | . . . . . . Cave-ins Triggered . | . . . . . . Exploration Rate (%) 70 | 4 99 91 99 75 56 Regions Visited 5 Branch Regions 1 Pre-discovered Areas 12 | . 4 1 4 1 2 Known Exits Taken 2 | . . 1 . 1 . Unknown Exits Taken 3 | 1 1 . 1 . . Scrap Searched 1 | . . 1 . . . Spaces Dug 37 | . 13 . . 5 19 Terrain Destroyed 329 | . 22 . 77 96 134 Melee 19 | . . . . . 19 Projectile 39 | . 22 . 1 9 7 AOE 271 | . . . 76 87 108 Terrain Rammed . | . . . . . . Walls Destroyed . | . . . . . . Machines Disabled . | . . . . . . Actions | -11 -10 -10 -9 -8 -7 --------- Run | Yrd Mat Min Mat Mat Fac Total 8310 | 93 2007 607 1926 1532 2145 Wait 1789 | 1 686 172 376 369 185 Move 5686 | 58 1125 405 1341 945 1812 Hop . | . . . . . . Pick Up 71 | 1 27 3 14 14 12 Fast Attach 57 | 1 1 1 26 21 7 Attach 29 | . 2 1 5 10 11 Detach 14 | . . . 4 5 5 Swap 79 | 1 24 5 30 5 14 Drop 104 | . 25 3 34 20 22 Fire 448 | 31 117 12 96 143 49 Melee 32 | . . 5 . . 27 Ram . | . . . . . . Kick . | . . . . . . Crush . | . . . . . . Escape Stasis . | . . . . . . Rewire 1 | . . . . . 1 Trap . | . . . . . . Miscellaneous . | . . . . . . Route ------- -11/Scrapyard -10/Materials (discovered 5 exits: *Mat x3 / *Min / *Sub) -10/Mines (discovered 4 exits: *Mat x2 / *Exi / Sub) -9/Materials (discovered 5 exits: *Mat x3 / *Min x2) -8/Materials (discovered 5 exits: *Fac x3 / *Sto x2) -7/Factory (discovered 2 exits: *Low x2) History --------- Turn | Location | Event 26 | -11/Scrapyard | Discovered new exit (range 3) 157 | -11/Scrapyard | Entered Materials 310 | -10/Materials | Build established: Mutant 384 | -10/Materials | Discovered new exit (range 16) 475 | -10/Materials | Discovered new exit (range 6) 727 | -10/Materials | Discovered new exit (range 12) 1437 | -10/Materials | Discovered new exit (range 6) 1590 | -10/Materials | Discovered new exit (range 10) 1759 | -10/Materials | Learned location of Mines (-10) 1819 | -10/Materials | Learned location of 2 exits from Mines 1868 | -10/Materials | Learned Storage stockpile data 1973 | -10/Materials | Loaded intel: 8 terminal locations 1992 | -10/Materials | Learned 4 Subcaves zone layouts 2020 | -10/Materials | Learned Storage emergency access door positions 2659 | -10/Materials | Entered Mines 2659 | -10/Mines | Accompanied by 1 ally 2660 | -10/Mines | Identified exit to Materials 2661 | -10/Mines | Identified exit to Subcaves 2661 | -10/Mines | Identified exit to Exiles 2701 | -10/Mines | Met a Derelict bent on vengeance 2748 | -10/Mines | Found the Drone Emporium 2761 | -10/Mines | Found Prototype Device 2761 | -10/Mines | Identified Sensor Drone Bay 3016 | -10/Mines | Received a Rocket Launcher from a helpful Derelict 3529 | -10/Mines | Learned location of Zion (-7) 3543 | -10/Mines | Excavation squad dispatched 3543 | -10/Mines | A large section of the Mines collapsed 3560 | -10/Mines | Core integrity fell below 50% 3693 | -10/Mines | Deemed a non-threat by the Exiles lab entrance 3805 | -10/Mines | Entered Materials 3805 | -9/Materials | Evolved 2 slots: Utility x1, Weapon x1 3806 | -9/Materials | Identified exit to Mines 4788 | -9/Materials | Discovered new exit (range 16) 5206 | -9/Materials | Repaired Lgt. Armor Plating 6011 | -9/Materials | Build established: Scavenger-Mutant 6035 | -9/Materials | Discovered new exit (range 15) 6182 | -9/Materials | Repaired Cld. Ion Engine? 6537 | -9/Materials | Learned 2 Storage zone layouts 6548 | -9/Materials | Discovered new exit (range 16) 6593 | -9/Materials | Learned Storage trap positions 6639 | -9/Materials | Learned location of Mines (-9) 6731 | -9/Materials | Learned location of 3 exits from Materials 6775 | -9/Materials | Learned 4 Recycling zone layouts 7395 | -9/Materials | Build established: Mutant 7538 | -9/Materials | Entered another Materials area 7538 | -8/Materials | Evolved 2 slots: Propulsion x1, Utility x1 7539 | -8/Materials | Identified exit to Storage 7539 | -8/Materials | Identified exit to Factory 8515 | -8/Materials | Build established: Scavenger-Tank 8586 | -8/Materials | Discovered exit to Factory (range 16) 9326 | -8/Materials | Build established: Tank 9493 | -8/Materials | Discovered exit to Factory (range 5) 9938 | -8/Materials | First assault squad dispatched 10393 | -8/Materials | Build established: Scavenger-Mutant 10416 | -8/Materials | Core integrity fell below 50% 10471 | -8/Materials | Lost 3 parts (1n1u1w) 10545 | -8/Materials | System corruption reached 10% 10545 | -8/Materials | Entered Factory 10545 | -7/Factory | Evolved 2 slots: Propulsion x1, Utility x1 10843 | -7/Factory | Discovered new exit (range 5) 11339 | -7/Factory | Build established: Hacker-Mutant 11667 | -7/Factory | Garrison activated, responded to threat 11771 | -7/Factory | Discovered new exit (range 14) 11800 | -7/Factory | Identified exit to Lower Caves 11964 | -7/Factory | Learned location of 1 exit from Cetus 12039 | -7/Factory | Learned location of Upper Caves (-4) 12091 | -7/Factory | Lost 4 parts (4n) 12160 | -7/Factory | Learned 4 Lower Caves zone layouts 12203 | -7/Factory | Learned location of 2 exits from Upper Caves 12237 | -7/Factory | Learned location of 1 exit from Hub_04(d) 12242 | -7/Factory | Cargo convoy interrupted 12262 | -7/Factory | Core integrity fell below 50% 12269 | -7/Factory | Core integrity fell below 20% 12271 | -7/Factory | Destroyed by X-67 Chaingunner with Minigun Last Messages --------------- 12242_ K-01 Serf collects debris. 12242_ C-30 ARC bursts open, deploying its payload. 12242_ H-55 Commando unfolds itself. 12243_ M-28 Smith repairs H-55 Commando. 12243_ R-06 Scavenger collects VTOL Module. 12245_ K-01 Serf collects debris. 12247_ R-06 Scavenger collects VTOL Module. 12248_ Penetrated by Slug. 12251_ Slug penetrates Wall. 12254_ Hvy. Missile Launcher destroyed. 12256_ >> MONITOR: Recycling Unit F005 accepting Seismic Detector (80%). 12259_ Penetrated by Slug. 12259_ Enh. Nuclear Core destroyed. 12259_ >> MONITOR: Recycling Unit F005 accepting Autogun (79%). 12260_ System corrupted: Heat flow error (+251). 12262_ Spear destroyed. 12262_ >> MONITOR: Recycling Unit F005 accepting Wheel (57%). 12265_ >> MONITOR: Recycling Unit F005 accepting Autogun (77%). 12268_ Penetrated by Slug. 12269_ K-01 Serf cleans the Subcomponent Replicator. Map ----- +----------------------------------------------------+ | ???## ### ! ] #?? ! / # * """ """ #????# | | ????# #?# #???###### #????# * | | ????# #?# """""" #????????# """ #????### | | ????# #?# ] """""" #????????# ""T"" """ #??????? | | ????# #?# """""" #????????# """"" """ #??????? | | ????# #?# """""" #????????# #??????? | | ????# #?#= [ #### #########+#+############? | | ????# #?######+####### #????# +? | | ????# #?# ! !# """ ###### ######????? | | ????# #?# """ """ # """ + #?????????? | | ????# #?# """ """ # """ # #?????????? | | ????# ### """ "" # + #?????????? | | ????# + "" "" # ###### #?????????? | | ????# ### # #????# #?????????? | | ????# #?# """ """ #! !* #????# #?????????? | | ????# #?# """ """ # ! #????# #?????????? | | ????# #?# """ """ # % #????# #?????????? | | ????? ??# "" """ # !#????# #?????????? | | ????? ??# # #????# #?????????? | | ????? ??# ! # #????# #?????????? | | ????? ??#######+#######+########## #???"?????? | | ????? ??????# % #??""?????? | | ????? ??????# % % #?""??????? | | ????? ??????# r # "???????? | | ????? ??????# + ?????#### | | ????? @ #??????# | | ????? ###### #??????# | | ????????????# ######## "" | | ????????????# # "" | | ????????????# % # "" | | ????????????# x k w=*[ # "" | | ????????????# xhix ^ =*[ + "" | | ????????????# % k %h x =*[ # "" | | ????????????# ############x### # "" | | ????????????# # ## k% # ^^ # | | ????????????# ### ### """""h # ^^" " # | | ??????????? + #??##?# """""ku# ^ " " # | | ??????????? # #?????# """ + " " #### | | ?????????? ?# ??????# # " " #### | | ????????????# ??????# # " " # | | ????????????? ??????# "" "" ##### ^ " " # | | ??????????????? ??????# ""F"" #???#^ " " # " | | ????????????????????????# """ #???#^^ " " # " | | ????????????????????????##??######???# " " # | | ?????????????????????????????????????# # | | ?????????????????????????????????????# [ + " | | ?????????????????????????????????????# # " | | ???????????????????????????????#######+## # | | ???????????????????????????????# # # # | | ???????????????????????????????# # | +----------------------------------------------------+ Best States ------------- Heat Dissipation 48 Energy Generation 17 Energy Capacity 530 Matter Stores 300 Matter Capacity 300 Sight Range 20 Terrain Scan Density 10 Armor Coverage 150 Evasion (%) 55 Launcher Accuracy 20 Recoil Reduction 3 Offensive Hacking 20 Item Schematics ----------------- Airjet | -7/Factory | Scanalyzed Robot Schematics ------------------ None Fabricated ------------ Nothing Repaired ---------- Lgt. Armor Plating | 13% | -9/Materials Cld. Ion Engine | 53% | -9/Materials Alien Tech Used ----------------- None Achievements -------------- None Challenges ------------ None Game ------ Seed IntegrityVortexReplicator Manual? 0 Play Time 01:24:50 Cumulative 293.6 hours Start 2025.06.21 @ 16:13:12 End 2025.06.21 @ 17:44:36 Sessions 1 Manual Loads 0 Difficulty Rogue Special Mode None Game No. 185 Rogue 185 Adventurer 0 Explorer 0 Win Type - Total 2 Types 1/0/0/1/0/0/0/0/0/0 Lore% 81 Gallery% 65 Achievement% 62 Wizard Run 0 Options --------- Layout 0 ASCII 0 Keyboard 0 Movement Mouse Keybinds 0 Fullscreen 1 Font 18/SmallcapsGlow Map View 76x50 Zoom Use 0% Tactical HUD 1 Map Filters NONE Filters NONE Steam 1 RUN: 468825f6-70bc-4d71-8661-1d24fc5c0955